fUSD/lending_fUSD_20250525
["ID","MTS","AMOUNT","RATE_DAILY","PERIOD"]
[362269636,1748134240744,-420.0,0.00019205,2]
[362269637,1748134240753,-420.0,0.00019205,2]
[362269638,1748134240763,-420.0,0.00019205,2]
[362269639,1748134240772,-606.5,0.00019205,2]
[362269640,1748134240782,-420.0,0.00019205,2]
[362269641,1748134240791,-420.0,0.00019205,2]
[362269642,1748134240800,-420.0,0.00019205,2]
[362269643,1748134240810,-420.0,0.00019205,2]
[362269644,1748134240819,-517.47,0.00019205,2]
[362269645,1748134240828,-420.0,0.00019205,2]
[362269646,1748134240838,-420.0,0.00019205,2]
[362269647,1748134240848,-420.0,0.00019205,2]
[362269648,1748134240857,-1046.77,0.00019205,2]
[362269649,1748134240866,-420.0,0.00019205,2]
[362269650,1748134240876,-420.0,0.00019205,2]
[362269651,1748134240885,-420.0,0.00019205,2]
[362269652,1748134240895,-420.0,0.00019205,2]
[362269653,1748134240904,-420.0,0.00019205,2]
[362269654,1748134240913,-420.0,0.00019205,2]
[362269655,1748134240922,-1934.53,0.00019205,2]
[362269656,1748134240931,-420.0,0.00019205,2]
[362269657,1748134240943,-420.0,0.00019205,2]
[362269658,1748134240952,-420.0,0.00019205,2]
[362269659,1748134240962,-420.0,0.00019205,2]
[362269660,1748134240975,-420.0,0.00019205,2]
[362269661,1748134240983,-420.0,0.00019205,2]
[362269662,1748134240993,-420.0,0.00019205,2]
[362269663,1748134241003,-420.0,0.00019205,2]
[362269664,1748134241013,-420.0,0.00019205,2]
[362269665,1748134241022,-420.0,0.00019205,2]
[362269666,1748134241031,-420.0,0.00019205,2]
[362269667,1748134241041,-420.0,0.00019205,2]
[362269668,1748134241051,-420.0,0.00019205,2]
[362269669,1748134241061,-420.0,0.00019205,2]
[362269670,1748134241071,-461.12,0.00019205,2]
[362269671,1748134241081,-420.0,0.00019205,2]
[362269672,1748134241090,-420.0,0.00019205,2]
[362269673,1748134241100,-34087.27,0.00019205,2]
[362269674,1748134241110,-420.0,0.00019205,2]
[362269675,1748134241119,-420.0,0.00019205,2]
[362269676,1748134241130,-420.0,0.00019205,2]
[362269677,1748134241141,-420.0,0.00019205,2]
[362269678,1748134241150,-420.0,0.00019205,2]
[362269679,1748134241160,-4323.55,0.00019205,2]
[362269680,1748134241170,-420.0,0.00019205,2]
[362269681,1748134241180,-420.0,0.00019205,2]
[362269682,1748134241191,-420.0,0.00019205,2]
[362269683,1748134241201,-420.0,0.00019205,2]
[362269684,1748134241210,-420.0,0.00019205,2]
[362269685,1748134241220,-353.12,0.00019205,2]
[362269686,1748134241230,-420.0,0.00019205,2]
[362269687,1748134241240,-420.0,0.00019205,2]
[362269688,1748134241250,-420.0,0.00019205,2]
[362269689,1748134241259,-420.0,0.00019205,2]
[362269690,1748134241268,-420.0,0.00019205,2]
[362269691,1748134241277,-1031.31,0.00019205,2]
[362269692,1748134241287,-1193.42,0.00019205,2]
[362269693,1748134241297,-420.0,0.00019205,2]
[362269694,1748134241306,-420.0,0.00019205,2]
[362269695,1748134241315,-420.0,0.00019205,2]
[362269696,1748134241325,-420.0,0.00019205,2]
[362269697,1748134241334,-525.20615316,0.00019205,2]
[362269698,1748134241344,-2621.08,0.00019205,2]
[362269699,1748134241354,-420.0,0.00019205,2]
[362269700,1748134241363,-720.58,0.00019205,2]
[362269701,1748134241372,-420.0,0.00019205,2]
[362269702,1748134241381,-420.0,0.00019205,2]
[362269703,1748134241391,-420.0,0.00019205,2]
[362269704,1748134241400,-420.0,0.00019205,2]
[362269705,1748134241409,-420.0,0.00019205,2]
[362269706,1748134241418,-195.826294,0.00019205,2]
[362269707,1748134241427,-420.0,0.00019205,2]
[362269708,1748134241439,-420.0,0.00019205,2]
[362269709,1748134241449,-420.0,0.00019205,2]
[362269710,1748134241459,-1232.61,0.00019205,2]
[362269711,1748134241468,-420.0,0.00019205,2]
[362269712,1748134241478,-607.56,0.00019205,2]
[362269713,1748134241487,-422.62,0.00019205,2]
[362269714,1748134241496,-2512.5287,0.00019215,2]
[362269715,1748134241505,-742.36,0.00019222,2]
[362269716,1748134241516,-173.0,0.00019228,2]
[362269717,1748134241526,-420.0,0.00019232,2]
[362269718,1748134241535,-276.78378169,0.00019232,2]
[362269719,1748134241545,-420.0,0.00019232,2]
[362269720,1748134241554,-420.0,0.00019232,2]
[362269721,1748134241564,-420.0,0.00019232,2]
[362269722,1748134241575,-420.0,0.00019232,2]
[362269723,1748134241586,-420.0,0.00019232,2]
[362269724,1748134241598,-1023.35,0.00019232,2]
[362269725,1748134241608,-420.0,0.00019232,2]
[362269726,1748134241620,-350.53062974,0.00019232,2]
[362269727,1748134241631,-420.0,0.00019232,2]
[362269728,1748134241643,-420.0,0.00019232,2]
[362269729,1748134241652,-606.5,0.00019232,2]
[362269730,1748134241662,-420.0,0.00019232,2]
[362269731,1748134241671,-420.0,0.00019232,2]
[362269732,1748134241680,-420.0,0.00019232,2]
[362269733,1748134241689,-420.0,0.00019232,2]
[362269734,1748134241699,-517.47,0.00019232,2]
[362269735,1748134241709,-420.0,0.00019232,2]
[362269736,1748134241719,-420.0,0.00019232,2]
[362269737,1748134241731,-420.0,0.00019232,2]
[362269738,1748134241741,-1046.77,0.00019232,2]
[362269739,1748134241751,-458.48,0.00019232,2]
[362269740,1748134241763,-420.0,0.00019232,2]
[362269741,1748134241773,-1934.53,0.00019232,2]
[362269742,1748134241782,-420.0,0.00019232,2]
[362269743,1748134241793,-420.0,0.00019232,2]
[362269744,1748134241805,-420.0,0.00019232,2]
[362269745,1748134241816,-420.0,0.00019232,2]
[362269746,1748134241827,-420.0,0.00019232,2]
[362269747,1748134241838,-420.0,0.00019232,2]
[362269748,1748134241848,-420.0,0.00019232,2]
[362269749,1748134241858,-420.0,0.00019232,2]
[362269750,1748134241867,-476.38,0.00019232,2]
[362269751,1748134241879,-461.12,0.00019232,2]
[362269752,1748134241890,-34087.27,0.00019232,2]
[362269753,1748134241902,-420.0,0.00019232,2]
[362269754,1748134241911,-420.0,0.00019232,2]
[362269755,1748134241923,-420.0,0.00019232,2]
[362269756,1748134241931,-420.0,0.00019232,2]
[362269757,1748134241943,-4323.55,0.00019232,2]
[362269758,1748134241953,-420.0,0.00019232,2]
[362269759,1748134241962,-420.0,0.00019232,2]
[362269760,1748134241975,-420.0,0.00019232,2]
[362269761,1748134241985,-420.0,0.00019232,2]
[362269762,1748134241994,-420.0,0.00019232,2]
[362269763,1748134242005,-420.0,0.00019232,2]
[362269764,1748134242015,-1031.31,0.00019232,2]
[362269765,1748134242024,-1193.42,0.00019232,2]
[362269766,1748134242033,-420.0,0.00019232,2]
[362269767,1748134242042,-420.0,0.00019232,2]
[362269768,1748134242053,-420.0,0.00019232,2]
[362269769,1748134242063,-420.0,0.00019232,2]
[362269770,1748134242072,-2621.08,0.00019232,2]
[362269771,1748134242082,-420.0,0.00019232,2]
[362269772,1748134242092,-720.58,0.00019232,2]
[362269773,1748134242101,-420.0,0.00019232,2]
[362269774,1748134242111,-539.64187071,0.00019232,2]
[362269775,1748134242120,-420.0,0.00019232,2]
[362269776,1748134242130,-195.826294,0.00019232,2]
[362269777,1748134242139,-420.0,0.00019232,2]
[362269778,1748134242148,-1232.61,0.00019232,2]
[362269779,1748134242157,-607.56,0.00019232,2]
[362269780,1748134242167,-422.62,0.00019232,2]
[362269781,1748134242176,-500.0,0.00019241,2]
[362269782,1748134242185,-469.70526812,0.00019258,2]
[362269783,1748134242198,-446.19,0.0001926,2]
[362269784,1748134242207,-420.0,0.0001926,2]
[362269785,1748134242216,-158.6013999,0.0001926,2]
[362269787,1748134242226,-425.61,0.0001926,2]
[362269789,1748134242235,-420.0,0.0001926,2]
[362269790,1748134242245,-1023.35,0.0001926,2]
[362269791,1748134242254,-269.17,0.0001926,2]
[362269792,1748134242263,-420.0,0.0001926,2]
[362269794,1748134242272,-383.38988964,0.0001926,2]
[362269795,1748134242282,-606.5,0.0001926,2]
[362269796,1748134242291,-420.0,0.0001926,2]
[362269797,1748134242301,-420.0,0.0001926,2]
[362269798,1748134242311,-420.0,0.0001926,2]
[362269799,1748134242321,-517.47,0.0001926,2]
[362269802,1748134242331,-486.43900973,0.0001926,2]
[362269804,1748134242341,-490.8,0.0001926,2]
[362269806,1748134242351,-420.0,0.0001926,2]
[362269807,1748134242361,-1046.77,0.0001926,2]
[362269808,1748134242372,-289.24005639,0.0001926,2]
[362269809,1748134242381,-1934.53,0.0001926,2]
[362269810,1748134242391,-420.0,0.0001926,2]
[362269811,1748134242402,-420.0,0.0001926,2]
[362269812,1748134242412,-420.0,0.0001926,2]
[362269813,1748134242422,-420.0,0.0001926,2]
[362269814,1748134242432,-420.0,0.0001926,2]
[362269815,1748134242445,-420.0,0.0001926,2]
[362269816,1748134242455,-461.12,0.0001926,2]
[362269817,1748134242465,-34087.27,0.0001926,2]
[362269818,1748134242475,-420.0,0.0001926,2]
[362269819,1748134242485,-420.0,0.0001926,2]
[362269820,1748134242495,-420.0,0.0001926,2]
[362269821,1748134242504,-420.0,0.0001926,2]
[362269822,1748134242514,-4323.55,0.0001926,2]
[362269823,1748134242523,-420.0,0.0001926,2]
[362269825,1748134242533,-306.09,0.0001926,2]
[362269826,1748134242542,-504.36,0.0001926,2]
[362269827,1748134242551,-420.0,0.0001926,2]
[362269828,1748134242561,-420.0,0.0001926,2]
[362269829,1748134242571,-420.0,0.0001926,2]
[362269830,1748134242581,-1031.31,0.0001926,2]
[362269831,1748134242590,-1193.42,0.0001926,2]
[362269832,1748134242600,-420.0,0.0001926,2]
[362269833,1748134242610,-198.23,0.0001926,2]
[362269834,1748134242620,-429.45783494,0.0001926,2]
[362269835,1748134242630,-179.95085222,0.0001926,2]
[362269836,1748134242640,-2621.08,0.0001926,2]
[362269837,1748134242649,-420.0,0.0001926,2]
[362269838,1748134242659,-720.58,0.0001926,2]
[362269839,1748134242669,-420.0,0.0001926,2]
[362269840,1748134242678,-420.0,0.0001926,2]
[362269841,1748134242688,-1232.61,0.0001926,2]
[362269842,1748134242699,-607.56,0.0001926,2]
[362269843,1748134242709,-422.62,0.0001926,2]
[362269844,1748134242719,-253.0,0.00019265,2]
[362269845,1748134242729,-500.0,0.00019273,2]
[362269846,1748134242739,-500.0,0.00019273,2]
[362269847,1748134242749,-500.0,0.00019273,2]
[362269848,1748134242759,-500.0,0.00019273,2]
[362269849,1748134242768,-2298.52201007,0.00019282,2]
[362269850,1748134242778,-174.27468363,0.00019286,2]
[362269851,1748134242788,-500.0,0.00019286,2]
[362269852,1748134242798,-500.0,0.00019286,2]
[362269853,1748134242808,-358.94531462,0.00019287,2]
[362269854,1748134242817,-420.0,0.00019287,2]
[362269855,1748134242830,-1023.35,0.00019287,2]
[362269856,1748134242847,-420.0,0.00019287,2]
[362269857,1748134242858,-606.5,0.00019287,2]
[362269858,1748134242868,-420.0,0.00019287,2]
[362269859,1748134242878,-420.0,0.00019287,2]
[362269860,1748134242888,-420.0,0.00019287,2]
[362269861,1748134242898,-517.47,0.00019287,2]
[362269862,1748134242908,-1046.77,0.00019287,2]
[362269863,1748134242918,-1934.53,0.00019287,2]
[362269865,1748134242927,-420.0,0.00019287,2]
[362269866,1748134242936,-454.5,0.00019287,2]
[362269867,1748134242949,-420.0,0.00019287,2]
[362269868,1748134242959,-420.0,0.00019287,2]
[362269869,1748134242972,-495.43,0.00019287,2]
[362269870,1748134242982,-420.0,0.00019287,2]
[362269871,1748134242991,-461.12,0.00019287,2]
[362269872,1748134243002,-34087.27,0.00019287,2]
[362269873,1748134243012,-420.0,0.00019287,2]
[362269874,1748134243021,-420.0,0.00019287,2]
[362269876,1748134243080,-420.0,0.00019287,2]
[362269877,1748134243091,-420.0,0.00019287,2]
[362269878,1748134243101,-4323.55,0.00019287,2]
[362269879,1748134243110,-420.0,0.00019287,2]
[362269880,1748134243119,-420.0,0.00019287,2]
[362269881,1748134243128,-420.0,0.00019287,2]
[362269882,1748134243138,-420.0,0.00019287,2]
[362269883,1748134243148,-1031.31,0.00019287,2]
[362269884,1748134243158,-1193.42,0.00019287,2]
[362269885,1748134243168,-420.0,0.00019287,2]
[362269886,1748134243178,-2621.08,0.00019287,2]
[362269887,1748134243187,-720.58,0.00019287,2]
[362269888,1748134243199,-373.66002629,0.00019287,2]
[362269889,1748134243209,-420.0,0.00019287,2]
[362269890,1748134243219,-1232.61,0.00019287,2]
[362269891,1748134243228,-607.56,0.00019287,2]
[362269892,1748134243237,-422.62,0.00019287,2]
[362269893,1748134243247,-4735.20893037,0.00019297,2]
[362269894,1748134243256,-420.0,0.00019315,2]
[362269895,1748134243267,-1023.35,0.00019315,2]
[362269896,1748134243277,-466.04,0.00019315,2]
[362269897,1748134243287,-606.5,0.00019315,2]
[362269898,1748134243296,-420.0,0.00019315,2]
[362269899,1748134243306,-226.56,0.00019315,2]
[362269900,1748134243316,-420.0,0.00019315,2]
[362269901,1748134243326,-517.47,0.00019315,2]
[362269902,1748134243336,-1046.77,0.00019315,2]
[362269903,1748134243345,-1934.53,0.00019315,2]
[362269904,1748134243356,-420.0,0.00019315,2]
[362269905,1748134243367,-420.0,0.00019315,2]
[362269906,1748134243377,-420.0,0.00019315,2]
[362269907,1748134243386,-420.0,0.00019315,2]
[362269908,1748134243396,-461.12,0.00019315,2]
[362269909,1748134243406,-34087.27,0.00019315,2]
[362269910,1748134243416,-420.0,0.00019315,2]
[362269911,1748134243426,-420.0,0.00019315,2]
[362269912,1748134243437,-420.0,0.00019315,2]
[362269913,1748134243449,-420.0,0.00019315,2]
[362269914,1748134243459,-4323.55,0.00019315,2]
[362269915,1748134243469,-420.0,0.00019315,2]
[362269916,1748134243478,-420.0,0.00019315,2]
[362269917,1748134243488,-420.0,0.00019315,2]
[362269918,1748134243498,-420.0,0.00019315,2]
[362269919,1748134243507,-1031.31,0.00019315,2]
[362269920,1748134243517,-1193.42,0.00019315,2]
[362269921,1748134243527,-420.0,0.00019315,2]
[362269922,1748134243536,-2621.08,0.00019315,2]
[362269924,1748134243546,-720.58,0.00019315,2]
[362269926,1748134243555,-1232.61,0.00019315,2]
[362269928,1748134243564,-607.56,0.00019315,2]
[362269930,1748134243573,-422.62,0.00019315,2]
[362269931,1748134243583,-260.92605465,0.00019341,2]
[362269932,1748134243592,-437.6,0.00019342,2]
[362269934,1748134243602,-1023.35,0.00019342,2]
[362269935,1748134243612,-606.5,0.00019342,2]
[362269937,1748134243623,-535.3,0.00019342,2]
[362269938,1748134243634,-512.64,0.00019342,2]
[362269939,1748134243643,-517.47,0.00019342,2]
[362269940,1748134243652,-1046.77,0.00019342,2]
[362269941,1748134243662,-1934.53,0.00019342,2]
[362269942,1748134243671,-420.0,0.00019342,2]
[362269943,1748134243680,-420.0,0.00019342,2]
[362269944,1748134243691,-420.0,0.00019342,2]
[362269945,1748134243701,-420.0,0.00019342,2]
[362269946,1748134243710,-461.12,0.00019342,2]
[362269947,1748134243719,-34087.27,0.00019342,2]
[362269948,1748134243728,-420.0,0.00019342,2]
[362269949,1748134243739,-420.0,0.00019342,2]
[362269950,1748134243749,-420.0,0.00019342,2]
[362269951,1748134243758,-181.23,0.00019342,2]
[362269952,1748134243767,-4323.55,0.00019342,2]
[362269953,1748134243776,-420.0,0.00019342,2]
[362269954,1748134243784,-420.0,0.00019342,2]
[362269955,1748134243793,-420.0,0.00019342,2]
[362269956,1748134243803,-420.0,0.00019342,2]
[362269957,1748134243812,-1031.31,0.00019342,2]
[362269958,1748134243822,-1193.42,0.00019342,2]
[362269959,1748134243830,-420.0,0.00019342,2]
[362269960,1748134243839,-2621.08,0.00019342,2]
[362269961,1748134243848,-720.58,0.00019342,2]
[362269962,1748134243857,-1232.61,0.00019342,2]
[362269963,1748134243866,-607.56,0.00019342,2]
[362269964,1748134243875,-422.62,0.00019342,2]
[362269965,1748134243884,-163.82886468,0.00019352,2]
[362269966,1748134243892,-291.90999104,0.00019352,2]
[362269967,1748134243902,-4735.20893033,0.00019364,2]
[362269968,1748134243911,-759.91,0.00019368,2]
[362269969,1748134243920,-1023.35,0.00019369,2]
[362269970,1748134243929,-606.5,0.00019369,2]
[362269971,1748134243941,-517.47,0.00019369,2]
[362269972,1748134243950,-1046.77,0.00019369,2]
[362269973,1748134243959,-1934.53,0.00019369,2]
[362269974,1748134243972,-420.0,0.00019369,2]
[362269975,1748134243981,-420.0,0.00019369,2]
[362269976,1748134243990,-420.0,0.00019369,2]
[362269977,1748134244000,-198.74,0.00019369,2]
[362269978,1748134244010,-461.12,0.00019369,2]
[362269979,1748134244023,-34087.27,0.00019369,2]
[362269980,1748134244033,-536.05,0.00019369,2]
[362269981,1748134244046,-420.0,0.00019369,2]
[362269982,1748134244056,-420.0,0.00019369,2]
[362269983,1748134244066,-4323.55,0.00019369,2]
[362269984,1748134244078,-420.0,0.00019369,2]
[362269985,1748134244090,-420.0,0.00019369,2]
[362269986,1748134244099,-405.06,0.00019369,2]
[362269987,1748134244109,-325.99,0.00019369,2]
[362269988,1748134244120,-1031.31,0.00019369,2]
[362269989,1748134244131,-1193.42,0.00019369,2]
[362269990,1748134244141,-420.0,0.00019369,2]
[362269991,1748134244152,-2621.08,0.00019369,2]
[362269992,1748134244163,-720.58,0.00019369,2]
[362269993,1748134244172,-1232.61,0.00019369,2]
[362269994,1748134244182,-607.56,0.00019369,2]
[362269995,1748134244194,-422.62,0.00019369,2]
[362269996,1748134244203,-2298.52201007,0.0001937,2]
[362269997,1748134244212,-500.0,0.00019373,2]
[362269998,1748134244221,-500.0,0.00019373,2]
[362269999,1748134244231,-500.0,0.00019373,2]
[362270000,1748134244240,-331.84247892,0.00019373,2]
[362270001,1748134244249,-500.0,0.00019373,2]
[362270002,1748134244258,-500.0,0.00019373,2]
[362270003,1748134244267,-510.55145427,0.00019373,2]
[362270004,1748134244277,-271.69144004,0.00019373,2]
[362270005,1748134244286,-503.28603962,0.00019373,2]
[362270006,1748134244295,-1023.35,0.00019397,2]
[362270007,1748134244304,-606.5,0.00019397,2]
[362270008,1748134244314,-517.47,0.00019397,2]
[362270009,1748134244323,-1046.77,0.00019397,2]
[362270010,1748134244333,-1934.53,0.00019397,2]
[362270011,1748134244342,-420.0,0.00019397,2]
[362270012,1748134244351,-420.0,0.00019397,2]
[362270013,1748134244360,-420.0,0.00019397,2]
[362270014,1748134244369,-461.12,0.00019397,2]
[362270015,1748134244378,-34087.27,0.00019397,2]
[362270016,1748134244388,-155.38,0.00019397,2]
[362270017,1748134244398,-420.0,0.00019397,2]
[362270018,1748134244407,-4323.55,0.00019397,2]
[362270019,1748134244416,-420.0,0.00019397,2]
[362270020,1748134244425,-420.0,0.00019397,2]
[362270021,1748134244435,-1031.31,0.00019397,2]
[362270022,1748134244447,-1193.42,0.00019397,2]
[362270023,1748134244457,-420.0,0.00019397,2]
[362270024,1748134244466,-2621.08,0.00019397,2]
[362270025,1748134244475,-720.58,0.00019397,2]
[362270026,1748134244484,-1232.61,0.00019397,2]
[362270027,1748134244494,-607.56,0.00019397,2]
[362270028,1748134244503,-422.62,0.00019397,2]
[362270029,1748134244512,-245.57546544,0.00019403,2]
[362270030,1748134244521,-1023.35,0.00019424,2]
[362270031,1748134244530,-606.5,0.00019424,2]
[362270032,1748134244540,-517.47,0.00019424,2]
[362270033,1748134244549,-1046.77,0.00019424,2]
[362270034,1748134244558,-1934.53,0.00019424,2]
[362270035,1748134244567,-420.0,0.00019424,2]
[362270036,1748134244577,-420.0,0.00019424,2]
[362270037,1748134244586,-420.0,0.00019424,2]
[362270038,1748134244595,-461.12,0.00019424,2]
[362270039,1748134244604,-34087.27,0.00019424,2]
[362270040,1748134244614,-153.32,0.00019424,2]
[362270041,1748134244624,-4323.55,0.00019424,2]
[362270042,1748134244634,-420.0,0.00019424,2]
[362270043,1748134244645,-420.0,0.00019424,2]
[362270044,1748134244656,-1031.31,0.00019424,2]
[362270045,1748134244668,-1193.42,0.00019424,2]
[362270046,1748134244678,-164.83,0.00019424,2]
[362270047,1748134244690,-2621.08,0.00019424,2]
[362270048,1748134244704,-720.58,0.00019424,2]
[362270049,1748134244713,-1232.61,0.00019424,2]
[362270050,1748134244722,-607.56,0.00019424,2]
[362270051,1748134244732,-422.62,0.00019424,2]
[362270052,1748134244743,-4735.20893033,0.00019431,2]
[362270053,1748134244753,-196.0,0.00019433,2]
[362270054,1748134244763,-174.27468363,0.00019439,2]
[362270055,1748134244774,-163.82886468,0.00019443,2]
[362270056,1748134244783,-1023.35,0.00019452,2]
[362270057,1748134244794,-606.5,0.00019452,2]
[362270058,1748134244804,-517.47,0.00019452,2]
[362270059,1748134244814,-1046.77,0.00019452,2]
[362270060,1748134244825,-1934.53,0.00019452,2]
[362270061,1748134244835,-420.0,0.00019452,2]
[362270062,1748134244846,-420.0,0.00019452,2]
[362270063,1748134244856,-547.65,0.00019452,2]
[362270064,1748134244866,-461.12,0.00019452,2]
[362270065,1748134244876,-34087.27,0.00019452,2]
[362270066,1748134244886,-4323.55,0.00019452,2]
[362270067,1748134244895,-420.0,0.00019452,2]
[362270068,1748134244905,-420.0,0.00019452,2]
[362270069,1748134244916,-1031.31,0.00019452,2]
[362270070,1748134244925,-1193.42,0.00019452,2]
[362270071,1748134244934,-2621.08,0.00019452,2]
[362270072,1748134244947,-720.58,0.00019452,2]
[362270073,1748134244956,-1232.61,0.00019452,2]
[362270074,1748134244967,-607.56,0.00019452,2]
[362270075,1748134244977,-422.62,0.00019452,2]
[362270076,1748134244987,-2298.52201007,0.00019458,2]
[362270077,1748134244996,-160.59234279,0.00019473,2]
[362270078,1748134245006,-500.0,0.00019473,2]
[362270079,1748134245018,-501.0066624,0.00019473,2]
[362270080,1748134245029,-500.0,0.00019473,2]
[362270081,1748134245039,-160.65305058,0.00019473,2]
[362270082,1748134245049,-501.03567195,0.00019473,2]
[362270083,1748134245060,-211.85019746,0.00019473,2]
[362270084,1748134245069,-500.45105986,0.00019473,2]
[362270085,1748134245078,-163.17940351,0.00019473,2]
[362270086,1748134245088,-500.0,0.00019473,2]
[362270087,1748134245099,-500.0,0.00019473,2]
[362270088,1748134245108,-500.0,0.00019473,2]
[362270089,1748134245119,-500.0,0.00019473,2]
[362270090,1748134245129,-500.0,0.00019473,2]
[362270091,1748134245139,-500.41163282,0.00019473,2]
[362270092,1748134245149,-500.0,0.00019473,2]
[362270093,1748134245158,-500.47728492,0.00019473,2]
[362270094,1748134245168,-500.42408462,0.00019473,2]
[362270095,1748134245177,-160.86520303,0.00019473,2]
[362270096,1748134245186,-501.05502265,0.00019473,2]
[362270097,1748134245199,-316.46941072,0.00019473,2]
[362270098,1748134245209,-154.34303497,0.00019473,2]
[362270099,1748134245218,-500.81690193,0.00019473,2]
[362270101,1748134245228,-153.04768091,0.00019473,2]
[362270102,1748134245238,-1023.35,0.00019479,2]
[362270103,1748134245247,-606.5,0.00019479,2]
[362270104,1748134245256,-517.47,0.00019479,2]
[362270105,1748134245266,-1046.77,0.00019479,2]
[362270106,1748134245280,-1934.53,0.00019479,2]
[362270109,1748134245289,-240.3,0.00019479,2]
[362270111,1748134245299,-481.68,0.00019479,2]
[362270113,1748134245309,-461.12,0.00019479,2]
[362270116,1748134245318,-34087.27,0.00019479,2]
[362270118,1748134245328,-4323.55,0.00019479,2]
[362270120,1748134245338,-420.0,0.00019479,2]
[362270122,1748134245347,-420.0,0.00019479,2]
[362270125,1748134245357,-1031.31,0.00019479,2]
[362270127,1748134245366,-1193.42,0.00019479,2]
[362270129,1748134245376,-2621.08,0.00019479,2]
[362270131,1748134245385,-720.58,0.00019479,2]
[362270133,1748134245395,-1232.61,0.00019479,2]
[362270135,1748134245405,-607.56,0.00019479,2]
[362270137,1748134245414,-422.62,0.00019479,2]
[362270138,1748134245423,-500.0,0.00019479,2]
[362270139,1748134245433,-4735.20893033,0.00019498,2]
[362270140,1748134245445,-1023.35,0.00019506,2]
[362270141,1748134245454,-606.5,0.00019506,2]
[362270142,1748134245464,-517.47,0.00019506,2]
[362270143,1748134245473,-1046.77,0.00019506,2]
[362270144,1748134245482,-1934.53,0.00019506,2]
[362270145,1748134245492,-461.12,0.00019506,2]
[362270146,1748134245501,-34087.27,0.00019506,2]
[362270147,1748134245512,-4323.55,0.00019506,2]
[362270148,1748134245521,-420.0,0.00019506,2]
[362270149,1748134245531,-420.0,0.00019506,2]
[362270150,1748134245540,-1031.31,0.00019506,2]
[362270151,1748134245550,-1193.42,0.00019506,2]
[362270152,1748134245560,-2621.08,0.00019506,2]
[362270153,1748134245570,-720.58,0.00019506,2]
[362270154,1748134245579,-1232.61,0.00019506,2]
[362270155,1748134245588,-607.56,0.00019506,2]
[362270156,1748134245598,-422.62,0.00019506,2]
[362270157,1748134245607,-500.0,0.00019533,2]
[362270158,1748134245616,-1023.35,0.00019534,2]
[362270159,1748134245626,-606.5,0.00019534,2]
[362270160,1748134245635,-517.47,0.00019534,2]
[362270161,1748134245645,-1046.77,0.00019534,2]
[362270162,1748134245654,-1934.53,0.00019534,2]
[362270163,1748134245663,-461.12,0.00019534,2]
[362270164,1748134245673,-34087.27,0.00019534,2]
[362270165,1748134245682,-4323.55,0.00019534,2]
[362270166,1748134245692,-420.0,0.00019534,2]
[362270167,1748134245701,-420.0,0.00019534,2]
[362270168,1748134245710,-1031.31,0.00019534,2]
[362270169,1748134245720,-1193.42,0.00019534,2]